bitfinex/quotes_ETHUSD_20260207
["timestamp","ask_amount","ask_price","bid_price","bid_amount"]
[1770502920656,1.19299998,2099.1,2098.6,1.58198311]
[1770502921845,0.002,2099.1,2098.6,1.58198311]
[1770502924434,0.002,2099.1,2098.7,1.58098311]
[1770502926663,0.002,2099.1,2098.8,1.61285163]
[1770502929465,0.002,2099.1,2098.8,2.80397625]
[1770502930164,0.002,2099.1,2098.9,1.61285163]
[1770502930951,0.002,2099.1,2098.6,1.61385163]
[1770502931264,0.002,2099.1,2098.6,2.8051198]
[1770502931559,0.002,2099.1,2098.9,0.001]
[1770502940459,0.002,2099.1,2098.9,1.64659329]
[1770502945076,0.002,2099.1,2099.0,0.001]
[1770502946876,0.002,2099.3,2099.0,0.001]
[1770502950260,0.002,2099.3,2099.0,1.64659329]
[1770502950778,0.002,2099.3,2099.0,0.001]
[1770502954483,1.68694315,2099.3,2099.0,0.001]
[1770502954680,1.68694315,2099.3,2098.8,0.001]
[1770502955057,1.68494315,2099.1,2098.8,0.001]
[1770502955252,1.19092987,2099.2,2098.8,0.001]
[1770502955680,2.87783349,2099.3,2098.8,0.001]
[1770502956057,1.55434579,2099.2,2098.8,0.001]
[1770502957581,2.74530182,2099.2,2099.0,0.001]
[1770502957759,0.002,2099.1,2099.0,0.001]
[1770502963997,1.55634579,2099.1,2098.8,0.001]
[1770502965700,1.55634579,2099.1,2098.6,0.001]
[1770502965906,1.55434579,2098.8,2098.3,0.001]
[1770502966201,1.55434579,2098.6,2098.3,0.001]
[1770502966408,1.55434579,2098.6,2098.0,0.001]
[1770502966409,1.55434579,2098.5,2098.0,0.001]
[1770502968496,1.19138391,2098.4,2098.0,0.001]
[1770502969205,2.7457297,2098.4,2098.0,0.001]
[1770502970381,2.7457297,2098.4,2098.2,0.001]
[1770502973503,2.84784589,2098.9,2098.2,1.65537356]
[1770502973702,1.55434579,2098.8,2098.2,1.65537356]
[1770502974078,1.55434579,2098.8,2098.2,0.001]
[1770502975595,2.74555939,2098.7,2098.2,0.001]
[1770502976221,1.1912136,2098.7,2098.2,0.001]
[1770502976511,1.55434579,2098.6,2098.2,0.001]
[1770502977720,1.19132713,2098.5,2098.2,0.001]
[1770502981388,5.89939625,2098.4,2098.0,0.001]
[1770502981709,1.55434579,2098.3,2097.5,1.65437356]
[1770502981909,1.19149747,2098.2,2097.5,1.65437356]
[1770502982322,1.19149747,2098.2,2097.6,1.65437356]
[1770502982820,1.19149747,2098.2,2098.1,0.001]
[1770502982999,2.74584326,2098.2,2097.6,1.65437356]
[1770502983201,4.76798989,2098.3,2097.6,1.65437356]
[1770502983202,1.19348513,2098.3,2097.6,1.65437356]
[1770502983602,1.19345109,2098.3,2097.6,1.65437356]
[1770502984100,1.19345109,2098.3,2097.6,2.84620473]
[1770502984420,1.55434579,2098.2,2097.6,1.59437356]
[1770502986934,1.19155426,2098.1,2097.6,1.59437356]
[1770502987132,2.82035989,2098.1,2097.3,0.001]
[1770502987327,2.82035989,2098.1,2097.4,1.59150422]
[1770502989336,1.62880563,2097.7,2097.1,0.001]
[1770502989928,1.62880563,2097.7,2097.1,1.59250422]
[1770502990124,2.82035989,2098.1,2097.3,1.59150422]
[1770502990315,1.73120563,2098.0,2097.1,2.78459246]
[1770502990511,1.73120563,2098.0,2097.2,1.59150422]
[1770502990714,1.62880563,2097.6,2097.1,0.001]
[1770502991737,1.19189511,2097.5,2097.1,0.001]
[1770502992938,6.02887737,2097.4,2097.1,0.001]
[1770502993233,1.1918817,2097.6,2097.1,0.001]
[1770502993610,2.87570861,2097.6,2097.1,0.001]
[1770502994617,1.68382691,2097.5,2097.1,0.001]
[1770502995019,1.68382691,2097.5,2097.3,0.001]
[1770502995333,1.68382691,2097.5,2097.1,0.001]
[1770502995837,1.19195194,2097.4,2097.1,0.001]
[1770502997715,9.21458133,2097.7,2097.1,1.60047707]
[1770502997716,1.19183623,2097.7,2097.1,1.60047707]
[1770502997917,6.45086091,2097.8,2097.1,1.60047707]
[1770502999631,1.68382691,2097.7,2097.1,1.60047707]
[1770503000140,1.19183829,2097.6,2097.1,1.60047707]
[1770503002944,4.86935884,2097.8,2097.2,1.59947707]
[1770503003125,6.55318575,2097.8,2097.2,1.59947707]
[1770503007520,6.55318575,2097.8,2097.3,0.001]
[1770503007720,0.002,2097.6,2097.3,0.001]
[1770503013351,0.002,2097.6,2097.3,1.60047707]
[1770503015056,0.002,2097.6,2097.3,1.19296524]
[1770503015256,0.002,2097.6,2097.4,1.59947707]
[1770503018465,0.002,2097.6,2097.4,2.7914203]
[1770503020971,0.002,2097.8,2097.5,1.69185711]
[1770503022838,0.002,2097.8,2097.7,1.69185711]
[1770503024884,0.002,2097.8,2097.7,2.88363858]
[1770503026684,0.002,2097.8,2097.7,1.69185711]
[1770503027081,0.002,2097.8,2097.7,2.88363858]
[1770503028788,0.002,2098.0,2097.8,1.69185711]
[1770503029589,0.002,2098.0,2097.8,2.88355878]
[1770503032384,0.002,2098.0,2097.9,1.69185711]
[1770503034799,0.002,2098.0,2097.7,1.69185711]
[1770503038314,0.002,2098.0,2097.8,1.19172466]
[1770503038470,0.002,2098.0,2097.8,2.88358177]
[1770503041401,1.67751781,2098.0,2097.5,0.001]
[1770503041587,1.67551781,2097.8,2097.5,0.001]
[1770503042379,1.67551781,2097.8,2097.3,0.001]
[1770503043805,2.86724571,2097.8,2097.3,0.001]
[1770503044407,1.67551781,2097.7,2097.3,0.001]
[1770503044600,1.67142202,2097.7,2097.3,0.001]
[1770503044806,2.86722886,2097.9,2097.3,0.001]
[1770503045003,2.86722886,2097.9,2097.7,0.001]
[1770503045209,0.002,2097.8,2097.3,0.001]
[1770503045501,0.002,2097.8,2097.5,0.001]
[1770503050013,1.67094324,2097.8,2097.5,0.001]
[1770503050807,1.67094324,2097.8,2097.3,0.001]
[1770503050808,0.002,2097.8,2097.1,1.62675731]
[1770503050980,0.002,2097.8,2097.2,1.62575731]
[1770503051184,1.67094324,2097.8,2097.1,0.001]
[1770503051612,1.67094324,2097.8,2097.1,1.19311837]
[1770503052395,2.7120959,2097.7,2097.1,1.19311837]
[1770503052601,1.19178147,2097.7,2097.1,2.72709542]
[1770503054916,1.19178147,2097.7,2097.2,1.53397705]
[1770503055287,2.7120959,2097.7,2097.1,0.001]
[1770503055905,5.86610977,2097.5,2097.1,0.001]
[1770503056715,1.52031443,2097.5,2097.1,0.001]
[1770503056919,1.19186304,2097.6,2097.1,0.001]
[1770503057302,2.71217747,2097.6,2097.1,0.001]
[1770503058298,1.52031443,2097.6,2097.3,0.001]
[1770503058497,1.52231443,2097.6,2097.3,0.001]
[1770503058911,2.71415301,2097.6,2097.3,0.001]
[1770503062630,1.52031443,2097.5,2097.1,0.001]
[1770503062812,4.34579534,2097.2,2096.6,1.53497705]
[1770503063121,1.52031443,2097.1,2096.6,0.001]
[1770503064606,1.52031443,2097.0,2096.6,0.001]
[1770503068908,5.86610977,2096.9,2096.2,1.53397705]
[1770503069105,4.34579534,2096.9,2096.2,1.53397705]
[1770503071028,4.34579534,2097.2,2096.4,1.53397705]
[1770503071217,2.71235291,2097.3,2096.8,0.001]
[1770503071824,1.52031443,2097.1,2096.4,1.53397705]
[1770503072004,1.87835648,2097.1,2096.4,1.53397705]
[1770503073530,1.1921793,2097.0,2096.4,2.72648959]
[1770503073704,1.1921793,2097.0,2096.4,1.53397705]
[1770503073902,1.55020261,2097.1,2096.1,1.57205687]
[1770503074105,1.52031443,2097.0,2096.2,2.72657138]
[1770503074305,1.52031443,2097.0,2096.3,2.72654897]
[1770503074507,1.52031443,2097.0,2096.3,1.53397705]
[1770503074707,1.52031443,2097.0,2096.3,2.72655255]
[1770503075322,1.52031443,2097.0,2096.3,1.53397705]
[1770503075517,2.72513153,2096.9,2096.1,1.19264713]
[1770503075719,5.87869072,2096.8,2096.1,1.19268511]
[1770503075925,1.53289538,2096.7,2096.1,1.19268511]
[1770503076128,1.53289538,2096.7,2096.1,2.72145396]
[1770503078513,2.72525855,2096.7,2096.1,2.72145396]
[1770503079042,1.53289538,2096.6,2095.9,1.53176885]
[1770503079211,1.53289538,2096.6,2095.9,2.72456557]
[1770503079613,1.53289538,2096.6,2095.9,1.53176885]
[1770503079916,2.725359,2096.5,2095.9,1.53176885]
[1770503080122,1.53289538,2096.5,2095.9,2.72455719]
[1770503082941,2.72537414,2096.5,2095.9,2.72457337]
[1770503083540,2.72537414,2096.5,2095.9,1.53176885]
[1770503083743,2.72537414,2096.5,2096.1,0.001]
[1770503083917,2.72737414,2096.5,2096.1,0.001]
[1770503084112,1.53489538,2096.5,2096.1,0.001]
[1770503086039,2.72735935,2096.5,2096.1,0.001]
[1770503087441,7.08095628,2096.5,2096.1,0.001]
[1770503089722,7.08095628,2096.5,2095.7,0.003]
[1770503089723,5.88649231,2096.3,2095.7,0.003]
[1770503090357,1.53289538,2096.2,2095.7,0.003]
[1770503090529,4.35359693,2096.3,2095.7,1.19591579]
[1770503090852,0.002,2096.5,2095.9,2.72156684]
[1770503091823,0.002,2096.5,2095.9,1.52876885]
[1770503093149,0.002,2096.5,2096.0,1.52876885]
[1770503094847,0.002,2096.5,2096.1,1.52876885]
[1770503095464,0.002,2096.5,2096.2,1.52876885]
[1770503097560,0.002,2096.5,2096.4,1.52876885]
[1770503099551,0.002,2096.5,2096.4,2.72128936]
[1770503100855,0.002,2096.7,2096.5,1.52876885]
[1770503101854,0.002,2096.7,2096.6,2.7211756]
[1770503104572,0.002,2096.7,2096.6,1.52876885]
[1770503104753,0.002,2096.7,2096.5,1.19242899]
[1770503105145,0.002,2096.7,2096.6,1.19240675]
[1770503106169,0.002,2096.7,2096.6,1.56135664]
[1770503106669,0.002,2096.7,2096.5,1.19246362]
[1770503108166,4.35559693,2096.7,2096.2,1.56135664]
[1770503108358,5.90232979,2096.7,2096.0,1.56135664]
[1770503109778,5.90232979,2096.7,2096.1,0.001]
[1770503109952,0.002,2096.5,2096.1,0.001]
[1770503110142,0.002,2096.5,2096.1,1.19369118]
[1770503110338,0.002,2096.5,2096.2,1.56235664]
[1770503110545,0.002,2096.5,2096.2,1.56135664]
[1770503110869,0.002,2096.5,2096.1,1.19469118]
[1770503111273,0.002,2096.5,2096.1,2.75604782]
[1770503114350,0.002,2096.5,2096.1,0.002]
[1770503116454,1.5277198,2096.5,2096.1,0.001]
[1770503116855,2.72020569,2096.5,2096.1,0.001]
[1770503117172,1.5277198,2096.5,2096.1,0.001]
[1770503117680,0.002,2096.5,2096.2,0.001]
[1770503118681,0.002,2096.5,2096.2,1.19363429]
[1770503119270,0.002,2096.5,2096.3,0.001]
[1770503120989,0.002,2096.5,2096.2,1.19263429]
[1770503121157,0.002,2096.7,2096.5,1.54427158]
[1770503122104,0.34141571,2097.0,2096.5,1.54427158]
[1770503122389,0.002,2096.9,2096.5,1.54427158]
[1770503123560,0.002,2096.9,2096.6,2.73667833]
[1770503125191,0.002,2097.4,2096.7,1.54427158]
[1770503125399,1.5277198,2097.4,2096.7,1.54427158]
[1770503126290,1.5277198,2097.4,2096.8,1.19229301]
[1770503127488,1.5277198,2097.4,2096.8,2.73656459]
[1770503128682,1.5277198,2097.4,2096.6,1.54427158]
[1770503131096,1.5277198,2097.4,2096.8,1.54427158]
[1770503132463,0.002,2097.4,2096.8,1.54427158]
[1770503133268,0.002,2097.4,2096.9,2.73650773]
[1770503134978,0.002,2097.2,2096.9,2.73650773]
[1770503139417,0.002,2097.2,2096.9,1.19223615]
[1770503139601,0.002,2097.4,2097.0,1.56710746]
[1770503140314,0.002,2097.6,2097.1,2.75922991]
[1770503142818,0.002,2097.6,2097.2,1.56710746]
[1770503143522,0.002,2097.8,2097.2,1.56710746]
[1770503144625,1.6115775,2097.8,2097.3,1.19200877]
[1770503144927,1.6115775,2097.8,2097.2,1.19204887]
[1770503146625,1.6095775,2097.5,2096.7,1.56710746]
[1770503146811,1.6095775,2097.5,2096.8,1.19226761]
[1770503147999,1.6095775,2097.5,2097.1,0.001]
[1770503149599,1.6095775,2097.4,2097.1,0.001]
[1770503152021,1.6115775,2097.6,2097.1,0.001]
[1770503152732,0.002,2097.6,2097.1,1.56810746]
[1770503153626,0.002,2097.6,2097.1,2.76018768]
[1770503154124,0.002,2097.6,2097.1,0.001]
[1770503154125,1.6115775,2097.6,2097.1,0.001]
[1770503155227,1.6115775,2097.6,2097.1,1.19311821]
[1770503158429,1.6115775,2097.6,2096.7,4.76937632]
[1770503158430,1.6095775,2097.1,2096.7,1.19234946]
[1770503158620,4.34918124,2097.2,2096.7,1.19234946]
[1770503159613,1.6095775,2097.3,2096.8,1.19227856]
[1770503159816,1.6095775,2097.3,2096.7,1.56710746]
[1770503160838,1.6095775,2097.3,2096.3,1.19357571]
[1770503160839,4.34918124,2096.8,2096.3,1.19357571]
[1770503161013,4.34918124,2096.8,2096.3,0.001]
[1770503161536,5.95875874,2096.8,2096.3,0.001]
[1770503161734,1.19240675,2096.6,2096.1,0.001]
[1770503161940,5.95875874,2096.5,2096.1,0.001]
[1770503162704,5.95875874,2096.5,2096.0,0.001]
[1770503163520,1.6095775,2096.1,2095.8,0.001]
[1770503163726,1.19263429,2096.2,2095.8,0.001]
[1770503164007,1.19263429,2096.2,2095.5,1.19599007]
[1770503164008,1.6095775,2096.0,2095.5,0.003]
[1770503164208,5.95875874,2095.8,2095.3,1.1961382]
[1770503164424,5.95875874,2096.1,2095.4,1.19307905]
[1770503165711,5.8584584,2095.8,2095.3,0.003]
[1770503165939,7.05134321,2095.8,2095.3,0.003]
[1770503166344,5.54206605,2095.8,2095.3,0.003]
[1770503166548,1.50927716,2095.7,2095.3,0.003]
[1770503166729,1.50927716,2095.7,2095.2,4.60028761]
[1770503167948,1.50927716,2095.9,2095.2,5.79348665]
[1770503168247,7.05119821,2096.1,2095.2,7.30709527]
[1770503168459,1.50927716,2096.0,2095.2,7.30709527]
[1770503170435,2.70204455,2096.0,2095.2,7.30709527]
[1770503170754,4.34918124,2096.4,2095.3,1.51360862]
[1770503170931,5.8584584,2096.4,2095.6,1.51360862]
[1770503171142,4.34918124,2096.4,2095.6,1.51360862]
[1770503172967,4.34918124,2096.4,2095.7,2.75354911]
[1770503173462,1.50927716,2096.5,2095.8,1.56063028]
[1770503173761,1.56190853,2096.7,2095.8,1.5987101]
[1770503173934,2.75426738,2096.7,2095.8,1.5987101]
[1770503174138,1.56190853,2096.7,2095.8,1.5987101]
[1770503174646,0.002,2096.0,2095.8,1.5987101]
[1770503174956,1.56190853,2096.7,2095.8,1.5987101]
[1770503175158,1.56190853,2096.7,2095.9,1.192805]
[1770503175357,1.56190853,2096.6,2095.7,1.56063028]
[1770503175543,1.56190853,2096.6,2095.8,1.19285294]
[1770503175746,1.56190853,2096.6,2095.7,2.75350741]
[1770503175944,1.56190853,2096.6,2095.8,1.19285874]
[1770503176253,1.56190853,2096.6,2095.8,2.75348902]
[1770503179369,1.56190853,2096.6,2095.9,1.56063028]
[1770503181350,1.56190853,2096.6,2095.9,2.75338576]
[1770503183075,1.56190853,2096.8,2096.0,1.56063028]
[1770503183273,1.56190853,2096.7,2096.0,1.56063028]
[1770503183569,1.56190853,2096.7,2096.0,2.75333644]
[1770503185073,1.56190853,2096.6,2096.0,2.75333644]
[1770503186791,1.56190853,2096.6,2096.0,2.75336522]
[1770503187284,1.56190853,2096.5,2096.1,0.001]
[1770503187485,1.56390853,2096.5,2096.1,0.001]
[1770503191067,0.002,2096.5,2096.1,0.001]
[1770503193490,4.35610917,2096.5,2095.9,1.56163028]
[1770503193691,5.9180177,2096.5,2095.9,1.56163028]
[1770503194069,5.9180177,2096.5,2095.9,2.75443399]
[1770503195080,4.35610917,2096.5,2096.0,1.56063028]
[1770503195481,4.35610917,2096.5,2096.0,2.75332877]
[1770503195788,0.002,2096.5,2096.1,1.46877584]
[1770503196529,0.002,2096.7,2096.0,1.23077831]
[1770503196530,0.002,2096.7,2096.4,1.46877584]
[1770503196724,0.002,2096.9,2096.4,1.46877584]
[1770503197677,0.002,2096.9,2096.6,1.46877584]
[1770503200119,0.002,2096.9,2096.7,1.19234988]
[1770503200413,0.002,2096.9,2096.8,1.46877584]
[1770503202517,0.002,2096.9,2096.6,1.46877584]
[1770503202723,0.002,2096.9,2096.7,1.19234876]
[1770503203013,0.002,2096.9,2096.6,1.46877584]
[1770503203220,0.002,2096.9,2096.6,1.19240499]
[1770503204314,1.40118043,2097.4,2096.8,2.66106885]
[1770503204517,1.40118043,2097.4,2097.0,1.1921793]
[1770503204518,0.002,2097.4,2097.0,1.1921793]
[1770503204687,0.002,2097.4,2097.0,2.66095514]
[1770503205017,0.002,2097.4,2097.1,1.46877584]
[1770503206095,1e-08,2097.6,2097.2,1.46877584]
[1770503206621,1e-08,2097.6,2097.3,1.19200877]
[1770503207103,1e-08,2097.6,2097.2,1.46877584]
[1770503207487,1.39918044,2097.6,2096.6,1.46877584]
[1770503207690,4.35410917,2097.2,2096.5,1.19243766]
[1770503207888,4.35410917,2097.2,2096.5,2.6612135]
[1770503208323,5.7532896,2097.2,2096.5,1.19243766]
[1770503208723,5.7532896,2097.2,2096.4,4.76994873]
[1770503208933,4.35410917,2097.2,2096.5,1.46877584]
[1770503209512,1.39918043,2097.2,2096.5,1.46877584]
[1770503212141,1.39918043,2097.4,2096.6,1.19240675]
[1770503213520,0.002,2097.0,2096.6,1.19240675]
[1770503214511,0.002,2097.0,2096.6,2.66118259]
[1770503214712,1.40118043,2097.0,2096.4,1.19251254]
[1770503215917,1.40118043,2097.0,2096.5,1.19246333]
[1770503216325,1.39918043,2096.9,2096.3,1.19353459]
[1770503216834,1.39918043,2096.9,2096.3,0.001]
[1770503217525,0.002,2097.0,2096.5,1.19246334]
[1770503217744,0.002,2097.0,2096.5,2.66123918]
[1770503222861,0.002,2097.0,2096.4,1.19249305]
[1770503223070,1.40118043,2097.0,2096.4,1.19252009]
[1770503226466,1.40118043,2097.0,2096.3,0.001]
[1770503226669,2.59336273,2097.0,2096.4,1.43002158]
[1770503227254,1.40118043,2097.0,2096.6,0.001]
[1770503228272,2.59336048,2097.0,2096.6,0.001]
[1770503229994,1.19418005,2097.0,2096.6,0.001]
[1770503231278,0.002,2097.2,2096.7,1.43002158]
[1770503231660,0.002,2097.2,2096.9,1.43002158]
[1770503231976,0.002,2097.4,2096.9,1.43002158]
[1770503236971,0.002,2097.4,2097.0,1.36543319]
[1770503239481,0.002,2097.4,2097.2,1.36543319]
[1770503241354,0.002,2097.4,2097.3,1.19200877]
[1770503241550,0.002,2097.4,2097.3,2.55744196]
[1770503243083,0.002,2097.4,2097.1,2.55751814]
[1770503243308,0.002,2097.4,2097.2,1.19206188]
[1770503243795,0.002,2097.4,2097.1,2.55751753]
[1770503245574,0.002,2097.4,2096.9,1.19220683]
[1770503245777,0.002,2097.4,2096.9,2.55764002]
[1770503246584,0.002,2097.4,2097.0,1.36543319]
[1770503247814,1e-08,2097.6,2097.2,1.36543319]
[1770503250577,1e-08,2097.6,2097.3,1.19200877]
[1770503250778,1e-08,2097.6,2097.3,2.55744196]
[1770503251772,1e-08,2097.6,2097.4,1.36543319]
[1770503252675,1e-08,2097.6,2097.4,0.001]
[1770503265823,1e-08,2097.6,2097.4,1.46010795]
[1770503268010,1e-08,2097.6,2097.4,2.65204861]
[1770503268217,1e-08,2097.6,2097.5,1.45910795]
[1770503269318,0.002,2097.8,2097.4,1.19294066]
[1770503269617,0.002,2097.8,2097.5,1.45910795]
[1770503270415,0.002,2097.8,2097.5,2.65100026]
[1770503270599,0.002,2097.8,2097.5,1.45910795]
[1770503271094,0.002,2097.8,2097.5,2.65100027]
[1770503272202,0.002,2097.8,2097.6,1.45910795]
[1770503272414,0.002,2097.8,2097.6,2.65094611]
[1770503273618,0.002,2097.8,2097.7,1.45910795]
[1770503274417,0.002,2098.0,2097.7,1.45910795]
[1770503274897,0.002,2098.0,2097.7,2.6508779]
[1770503275105,0.002,2098.0,2097.7,1.45910795]
[1770503275421,0.002,2098.3,2098.0,1.45910795]
[1770503275621,0.002,2098.5,2098.0,1.45910795]
[1770503277198,0.002,2098.5,2098.1,1.19155426]
[1770503280418,0.002,2098.5,2098.2,1.45910795]
[1770503281134,0.002,2098.5,2098.0,2.65069349]
[1770503282132,0.002,2098.5,2098.1,1.45910795]
[1770503282316,0.002,2098.5,2098.0,1.19158554]
[1770503282317,0.002,2098.5,2098.2,4.34540414]
[1770503282529,0.002,2098.5,2098.2,6.99596305]
[1770503283307,0.002,2098.5,2098.1,1.19150314]
[1770503283508,0.002,2098.5,2098.1,2.65061109]
[1770503283824,0.002,2098.5,2098.2,1.19149644]
[1770503284134,0.002,2098.5,2098.0,2.65069444]
[1770503284313,0.002,2098.5,2098.1,1.19155179]
[1770503285331,0.002,2098.5,2098.2,1.45910795]
[1770503288449,0.002,2098.5,2098.1,1.19152252]
[1770503288620,1.36822597,2098.5,2098.1,1.19152252]
[1770503288826,0.002,2098.5,2098.1,1.19152252]
[1770503290323,0.002,2098.5,2098.2,1.19149163]
[1770503290525,0.002,2098.5,2098.4,0.001]
[1770503294252,0.002,2098.7,2098.4,1.28685381]
[1770503294747,0.002,2098.7,2098.4,0.001]
[1770503296724,0.002,2099.1,2098.4,0.001]
[1770503296725,4.76154448,2100.2,2098.7,0.002]
[1770503296923,1.24959414,2099.6,2098.9,1.19109969]
[1770503297139,1.24959414,2099.6,2098.8,4.52211571]
[1770503297350,1.24959414,2099.6,2098.9,1.19108959]
[1770503297649,1.24959414,2099.6,2098.7,1.28585381]
[1770503297854,1.24959414,2099.6,2098.8,3.331]
[1770503298436,1.28767396,2099.6,2098.8,3.331]
[1770503299056,1.24759414,2099.4,2098.8,3.331]
[1770503301761,1.19087314,2099.3,2098.8,3.331]
[1770503301936,1.24759414,2099.2,2098.8,3.331]
[1770503302561,1.24759414,2099.2,2098.4,1.1923548]
[1770503302755,1.24759414,2099.2,2098.8,3.331]
[1770503303255,1.24959414,2099.2,2098.4,2.47820861]
[1770503303464,1.24959414,2099.2,2098.5,3.331]
[1770503303768,1.19098661,2099.1,2098.5,3.331]
[1770503303970,0.002,2099.2,2098.6,1.28585381]
[1770503304131,1.19293005,2099.2,2098.6,1.28585381]
[1770503304635,0.002,2099.2,2098.6,1.28585381]
[1770503305459,1.19293159,2099.2,2098.6,1.28585381]
[1770503305953,0.002,2099.2,2098.6,2.4770892]
[1770503310573,0.002,2099.2,2098.7,1.28585381]
[1770503312203,1.24959414,2099.2,2098.5,2.47714683]
[1770503312371,1.24959414,2099.2,2098.4,0.001]
[1770503312683,1.24959414,2099.2,2098.4,1.19237765]
[1770503312684,1.19098661,2099.1,2098.4,1.19237765]
[1770503312883,1.24759414,2099.0,2098.4,0.001]
[1770503313694,1.24759414,2099.0,2098.4,1.28685381]
[1770503314203,1.19098661,2099.1,2098.4,1.28685381]
[1770503314706,1.24759414,2099.1,2098.4,2.47822034]
[1770503315669,1.24759414,2099.1,2098.6,0.001]
[1770503317497,2.43863086,2099.1,2098.6,0.001]
[1770503317899,0.002,2099.2,2098.9,4.34540414]
[1770503318202,0.002,2099.4,2098.9,5.60277371]
[1770503318408,0.002,2099.4,2099.0,1.25736957]
[1770503319085,0.002,2099.5,2099.2,1.25736957]
[1770503319402,0.002,2099.5,2099.3,2.44824271]
[1770503320111,0.002,2099.6,2099.4,1.25736957]
[1770503320681,0.002,2099.6,2099.3,1.19087314]
[1770503320892,0.002,2099.6,2099.3,2.44824271]
[1770503321410,0.002,2099.6,2099.3,2.44823969]
[1770503323599,0.002,2099.6,2099.2,1.25736957]
[1770503323906,0.002,2099.6,2099.1,2.44832698]
[1770503325420,1.24508042,2099.6,2098.9,2.38844525]
[1770503326085,2.43578656,2099.6,2099.0,1.25736957]
[1770503326285,0.002,2099.6,2099.2,1.25736957]
[1770503327020,1.19039669,2100.2,2099.4,1.25736957]
[1770503327311,2.43347711,2100.2,2099.4,1.25736957]
[1770503327885,2.43347711,2100.2,2099.5,1.1907597]
[1770503328088,1.24308042,2100.1,2099.5,1.1907597]
[1770503328695,1.24308042,2100.1,2099.4,2.44816846]
[1770503328916,1.24508042,2100.0,2099.4,2.44816846]
[1770503330397,2.43559995,2100.0,2099.4,1.25736957]
[1770503330589,2.43559995,2100.0,2099.4,2.44817098]
[1770503330788,1.24508042,2100.0,2099.4,2.44817098]
[1770503330988,0.002,2100.0,2099.4,2.44817098]
[1770503331212,0.002,2100.0,2099.5,1.25736957]
[1770503332633,0.002,2100.0,2099.5,2.44807698]
[1770503337818,1.24508042,2100.0,2099.4,1.19076671]
[1770503338024,1.24508042,2100.0,2099.5,1.1907595]
[1770503338222,0.002,2100.0,2099.5,2.44812907]
[1770503338437,0.002,2100.0,2099.4,1.19077977]
[1770503338638,1.24508042,2100.0,2099.4,1.19077977]
[1770503339437,1.24508042,2100.0,2099.5,1.19073991]
[1770503340146,0.002,2100.0,2099.5,1.19073991]
[1770503341635,0.002,2100.0,2099.6,0.001]
[1770503342754,0.002,2100.0,2099.6,1.25836957]
[1770503343144,0.002,2100.4,2099.8,1.25736957]
[1770503345938,0.002,2100.4,2100.0,1.11762019]
[1770503347851,0.008,2100.4,2100.0,1.11762019]
[1770503349057,0.002,2100.4,2100.1,2.30803969]
[1770503350961,0.002,2100.4,2100.0,4.76189279]
[1770503350962,0.008,2100.4,2100.2,2.30797196]
[1770503351763,4.75989446,2100.9,2100.2,2.30797196]
[1770503351764,1.17280132,2101.0,2100.3,1.10351693]
[1770503352062,2.37676901,2101.2,2100.3,1.10351693]
[1770503352538,1.19294302,2101.2,2100.3,1.10351693]
[1770503352735,0.006,2101.1,2100.4,1.10351693]
[1770503352936,0.006,2101.2,2100.6,1.10351693]
[1770503353168,1.19294302,2101.3,2100.6,1.10351693]
[1770503353540,1.19294302,2101.2,2100.5,1.19019281]
[1770503353741,1.18694302,2101.2,2100.5,1.19019281]
[1770503354039,0.006,2101.1,2100.5,2.29370974]
[1770503354450,0.006,2101.0,2100.5,2.29370974]
[1770503354651,0.006,2101.1,2100.5,2.29370974]
[1770503355237,0.006,2101.0,2100.5,2.29370974]
[1770503355432,0.006,2101.1,2100.5,2.29370974]
[1770503355868,0.006,2101.0,2100.5,2.29370974]
[1770503356170,0.006,2100.9,2100.6,1.10351693]
[1770503356355,0.006,2101.1,2100.6,1.10351693]
[1770503356747,0.006,2101.0,2100.5,2.29370974]
[1770503356958,0.006,2101.1,2100.5,2.29370974]
[1770503357464,0.006,2101.0,2100.5,2.29370974]
[1770503357650,0.006,2101.1,2100.5,2.29370974]
[1770503358052,0.006,2101.0,2100.5,2.29370974]
[1770503358242,0.006,2101.1,2100.5,2.29370974]
[1770503358743,0.006,2101.0,2100.5,2.29370974]
[1770503358945,0.006,2101.1,2100.5,2.29370974]
[1770503359169,0.006,2101.1,2100.6,1.10351693]
[1770503359469,0.006,2101.1,2100.6,2.29360483]
[1770503360270,0.006,2101.0,2100.6,2.29360483]
[1770503360570,1.19294302,2101.2,2100.6,1.1900879]
[1770503360772,0.006,2101.1,2100.6,1.1900879]
[1770503361454,0.006,2101.0,2100.6,1.1900879]
[1770503361660,0.006,2101.1,2100.6,1.1900879]
[1770503362170,0.006,2101.0,2100.6,1.1900879]
[1770503362370,1.19294302,2101.1,2100.5,2.29367259]
[1770503362979,0.006,2101.0,2100.5,2.29367259]
[1770503363370,0.006,2100.9,2100.5,2.29367259]
[1770503363551,0.006,2101.1,2100.6,1.10351693]
[1770503363980,0.006,2101.0,2100.6,2.29362134]
[1770503364158,0.006,2101.1,2100.6,2.29362134]
[1770503364678,0.006,2101.0,2100.6,2.29362134]
[1770503364868,0.006,2101.1,2100.6,2.29362134]
[1770503365977,0.006,2101.0,2100.6,2.29362134]
[1770503366179,0.006,2101.1,2100.6,2.29362134]
[1770503366682,0.006,2101.0,2100.6,2.29362134]
[1770503366860,0.006,2101.1,2100.6,2.29362134]
[1770503367263,0.006,2101.0,2100.6,2.29362134]
[1770503367472,0.006,2101.1,2100.6,2.29362134]
[1770503367877,2.37674141,2101.2,2100.6,2.29462134]
[1770503368079,0.002,2100.9,2100.6,2.29462134]
[1770503368572,0.008,2100.9,2100.6,2.29462134]
[1770503369083,1.18694302,2101.2,2100.6,2.29462134]
[1770503370086,1.18894302,2101.3,2100.7,1.10351693]
[1770503370384,1.18894302,2101.3,2100.8,1.19002284]
[1770503374181,2.37868723,2101.3,2100.7,1.19004437]
[1770503374378,1.18694302,2101.2,2100.7,1.19004437]
[1770503374786,0.002,2101.3,2100.8,1.10351693]